[Event "Titled Tuesday Blitz August 22 Early 2023"]
[White "Fernandez Garcia, Gumersindo"]
[Black "Shapiro, Daniel"]
[WhiteFideId "24516740"]
[BlackFideId "2001780"]
[WhiteElo "2384"]
[BlackElo "2291"]
[Result "1-0"]
[Round "8"]
[TimeControl "180+1"]
[Date "2023.08.22"]
[WhiteClock "0:00:53"]
[BlackClock "0:00:00"]
[Board "186"]

1. e4 {[%clk 0:02:59]}  c5 {[%clk 0:02:59]} 2. Nf3 {[%clk 0:02:57]}  d6 {[%clk 0:02:59]} 3. d4 {[%clk 0:02:56]}  cxd4 {[%clk 0:02:59]} 4. Nxd4 {[%clk 0:02:57]}  Nf6 {[%clk 0:02:59]} 5. Nc3 {[%clk 0:02:47]}  Nc6 {[%clk 0:02:59]} 6. Be3 {[%clk 0:02:47]}  Ng4 {[%clk 0:02:47]} 7. Nxc6 {[%clk 0:02:44]}  bxc6 {[%clk 0:02:30]} 8. Bc1 {[%clk 0:02:38]}  Qb6 {[%clk 0:02:26]} 9. Qd2 {[%clk 0:02:33]}  g6 {[%clk 0:02:18]} 10. h3 {[%clk 0:02:31]}  Bh6 {[%clk 0:02:11]} 11. f4 {[%clk 0:02:15]}  Ne5 {[%clk 0:01:53]} 12. Qf2 {[%clk 0:02:10]}  Qxf2+ {[%clk 0:01:43]} 13. Kxf2 {[%clk 0:02:07]}  Nd7 {[%clk 0:01:43]} 14. g4 {[%clk 0:01:58]}  e5 {[%clk 0:01:27]} 15. f5 {[%clk 0:01:55]}  Bxc1 {[%clk 0:01:23]} 16. Rxc1 {[%clk 0:01:56]}  Bb7 {[%clk 0:01:16]} 17. Bc4 {[%clk 0:01:55]}  Nb6 {[%clk 0:01:11]} 18. Bb3 {[%clk 0:01:53]}  d5 {[%clk 0:01:03]} 19. exd5 {[%clk 0:01:50]}  cxd5 {[%clk 0:01:03]} 20. Rhe1 {[%clk 0:01:40]}  f6 {[%clk 0:01:00]} 21. Rcd1 {[%clk 0:01:20]}  gxf5 {[%clk 0:00:53]} 22. gxf5 {[%clk 0:01:12]}  Rd8 {[%clk 0:00:53]} 23. a4 {[%clk 0:01:12]}  d4 {[%clk 0:00:44]} 24. Nb5 {[%clk 0:01:11]}  a6 {[%clk 0:00:35]} 25. Nxd4 {[%clk 0:01:10]}  Nd5 {[%clk 0:00:22]} 26. Ne6 {[%clk 0:01:08]}  Rc8 {[%clk 0:00:08]} 27. Bxd5 {[%clk 0:01:07]}  Rxc2+ {[%clk 0:00:08]} 28. Ke3 {[%clk 0:01:06]}  Bxd5 {[%clk 0:00:06]} 29. Rxd5 {[%clk 0:01:06]}  Ke7 {[%clk 0:00:06]} 30. Red1 {[%clk 0:01:06]}  Rhc8 {[%clk 0:00:03]} 31. Rd7+ {[%clk 0:01:06]}  Ke8 {[%clk 0:00:00]} 32. Rxh7 {[%clk 0:00:53]} 1-0


[Site "https://www.chess.com"]

[Event "Titled Tuesday Blitz August 22 Early 2023"]
[White "Legenia, Artem"]
[Black "Skiadopoulos, Nikolaos"]
[WhiteFideId "14136945"]
[BlackFideId "4200772"]
[WhiteElo "2366"]
[BlackElo "1819"]
[Result "0-1"]
[Round "8"]
[TimeControl "180+1"]
[Date "2023.08.22"]
[WhiteClock "0:01:40"]
[BlackClock "0:01:13"]
[Board "188"]

1. b4 {[%clk 0:03:00]}  e5 {[%clk 0:02:52]} 2. a3 {[%clk 0:02:58]}  Nf6 {[%clk 0:02:45]} 3. Bb2 {[%clk 0:02:58]}  Bd6 {[%clk 0:02:41]} 4. e3 {[%clk 0:02:58]}  O-O {[%clk 0:02:40]} 5. c4 {[%clk 0:02:58]}  c6 {[%clk 0:02:35]} 6. Nf3 {[%clk 0:02:57]}  Bc7 {[%clk 0:02:33]} 7. Be2 {[%clk 0:02:57]}  Re8 {[%clk 0:02:32]} 8. O-O {[%clk 0:02:52]}  d5 {[%clk 0:02:31]} 9. cxd5 {[%clk 0:02:50]}  cxd5 {[%clk 0:02:29]} 10. d4 {[%clk 0:02:51]}  e4 {[%clk 0:02:24]} 11. Ne5 {[%clk 0:02:51]}  Nbd7 {[%clk 0:02:21]} 12. Nxd7 {[%clk 0:02:48]}  Bxd7 {[%clk 0:02:20]} 13. Nd2 {[%clk 0:02:49]}  a6 {[%clk 0:02:17]} 14. Rc1 {[%clk 0:02:49]}  Bb5 {[%clk 0:02:16]} 15. a4 {[%clk 0:02:48]}  Bxe2 {[%clk 0:02:13]} 16. Qxe2 {[%clk 0:02:49]}  Qd6 {[%clk 0:02:11]} 17. g3 {[%clk 0:02:46]}  h5 {[%clk 0:02:08]} 18. Nb3 {[%clk 0:02:30]}  b6 {[%clk 0:02:06]} 19. Qc2 {[%clk 0:02:29]}  Rac8 {[%clk 0:02:00]} 20. Qc6 {[%clk 0:02:29]}  Qxb4 {[%clk 0:01:55]} 21. Qc3 {[%clk 0:02:18]}  Qf8 {[%clk 0:01:50]} 22. Qd2 {[%clk 0:02:15]}  h4 {[%clk 0:01:43]} 23. a5 {[%clk 0:02:14]}  bxa5 {[%clk 0:01:36]} 24. Nxa5 {[%clk 0:02:14]}  Bxa5 {[%clk 0:01:35]} 25. Qxa5 {[%clk 0:02:14]}  hxg3 {[%clk 0:01:29]} 26. Ba3 {[%clk 0:02:09]}  gxf2+ {[%clk 0:01:23]} 27. Kh1 {[%clk 0:02:08]}  Rxc1 {[%clk 0:01:20]} 28. Rxc1 {[%clk 0:02:06]}  Rc8 {[%clk 0:01:16]} 29. Rxc8 {[%clk 0:01:41]}  Qxc8 {[%clk 0:01:16]} 30. Kg2 {[%clk 0:01:42]}  Qg4+ {[%clk 0:01:13]} 31. Kxf2 {[%clk 0:01:40]}  Qf3+ {[%clk 0:01:13]} 0-1


[Site "https://www.chess.com"]

[Event "Titled Tuesday Blitz August 22 Early 2023"]
[White "Schut, Han"]
[Black "Gyulamiryan-koryun"]
[WhiteFideId "1005561"]
[WhiteElo "2237"]
[BlackElo "2031"]
[Result "0-1"]
[Round "8"]
[TimeControl "180+1"]
[Date "2023.08.22"]
[WhiteClock "0:00:13"]
[BlackClock "0:00:05"]
[Board "194"]

1. e4 {[%clk 0:03:00]}  c5 {[%clk 0:02:59]} 2. Nf3 {[%clk 0:03:00]}  e6 {[%clk 0:02:57]} 3. c4 {[%clk 0:03:00]}  Nc6 {[%clk 0:02:56]} 4. Nc3 {[%clk 0:03:01]}  g6 {[%clk 0:02:55]} 5. d4 {[%clk 0:03:00]}  cxd4 {[%clk 0:02:55]} 6. Nxd4 {[%clk 0:03:01]}  Bg7 {[%clk 0:02:54]} 7. Ndb5 {[%clk 0:03:02]}  Bf8 {[%clk 0:02:46]} 8. Bf4 {[%clk 0:02:57]}  e5 {[%clk 0:02:44]} 9. Nd5 {[%clk 0:02:54]}  Bc5 {[%clk 0:01:45]} 10. Nbc7+ {[%clk 0:02:33]}  Kf8 {[%clk 0:01:42]} 11. Be3 {[%clk 0:02:20]}  Bxe3 {[%clk 0:01:38]} 12. fxe3 {[%clk 0:02:21]}  Rb8 {[%clk 0:01:34]} 13. Bd3 {[%clk 0:02:07]}  d6 {[%clk 0:01:29]} 14. O-O {[%clk 0:02:03]}  Kg7 {[%clk 0:01:26]} 15. Qf3 {[%clk 0:01:59]}  Nh6 {[%clk 0:01:20]} 16. h3 {[%clk 0:01:48]}  Be6 {[%clk 0:01:10]} 17. Rf2 {[%clk 0:01:40]}  Rc8 {[%clk 0:01:05]} 18. Nb5 {[%clk 0:01:19]}  Rf8 {[%clk 0:01:05]} 19. Raf1 {[%clk 0:01:17]}  f5 {[%clk 0:00:56]} 20. exf5 {[%clk 0:01:11]}  gxf5 {[%clk 0:00:53]} 21. Qg3+ {[%clk 0:01:05]}  Kh8 {[%clk 0:00:49]} 22. Nbc3 {[%clk 0:00:58]}  Rg8 {[%clk 0:00:43]} 23. Qh2 {[%clk 0:00:57]}  Qg5 {[%clk 0:00:42]} 24. Kh1 {[%clk 0:00:54]}  Rcf8 {[%clk 0:00:40]} 25. b3 {[%clk 0:00:38]}  Ne7 {[%clk 0:00:34]} 26. Nxe7 {[%clk 0:00:37]}  Qxe7 {[%clk 0:00:35]} 27. Be2 {[%clk 0:00:29]}  Qg5 {[%clk 0:00:31]} 28. Nd1 {[%clk 0:00:28]}  Rg7 {[%clk 0:00:25]} 29. Bf3 {[%clk 0:00:29]}  b6 {[%clk 0:00:25]} 30. Bd5 {[%clk 0:00:28]}  Bxd5 {[%clk 0:00:22]} 31. cxd5 {[%clk 0:00:28]}  Rfg8 {[%clk 0:00:22]} 32. Re1 {[%clk 0:00:22]}  Nf7 {[%clk 0:00:20]} 33. Nc3 {[%clk 0:00:22]}  Qf6 {[%clk 0:00:14]} 34. Nb5 {[%clk 0:00:22]}  Rg3 {[%clk 0:00:13]} 35. Nc7 {[%clk 0:00:21]}  Qg6 {[%clk 0:00:12]} 36. Ne6 {[%clk 0:00:20]}  h5 {[%clk 0:00:11]} 37. Ref1 {[%clk 0:00:19]}  Nh6 {[%clk 0:00:10]} 38. e4 {[%clk 0:00:19]}  f4 {[%clk 0:00:09]} 39. Nc7 {[%clk 0:00:14]}  Qxe4 {[%clk 0:00:07]} 40. Ne6 {[%clk 0:00:10]}  Nf5 {[%clk 0:00:07]} 41. Nc7 {[%clk 0:00:09]}  Ne3 {[%clk 0:00:06]} 42. Re1 {[%clk 0:00:08]}  Rxg2 {[%clk 0:00:05]} 43. Rxg2 {[%clk 0:00:08]}  Rxg2 {[%clk 0:00:05]} 44. Rxe3 {[%clk 0:00:08]}  Rxh2+ {[%clk 0:00:04]} 45. Kxh2 {[%clk 0:00:09]}  Qxe3 {[%clk 0:00:05]} 46. Ne6 {[%clk 0:00:09]}  Qd2+ {[%clk 0:00:04]} 47. Kg1 {[%clk 0:00:08]}  Qxd5 {[%clk 0:00:04]} 48. Nd8 {[%clk 0:00:09]}  e4 {[%clk 0:00:04]} 49. Nf7+ {[%clk 0:00:09]}  Qxf7 {[%clk 0:00:04]} 50. h4 {[%clk 0:00:10]}  Qg6+ {[%clk 0:00:04]} 51. Kf2 {[%clk 0:00:10]}  e3+ {[%clk 0:00:04]} 52. Ke1 {[%clk 0:00:11]}  f3 {[%clk 0:00:04]} 53. Kd1 {[%clk 0:00:11]}  Qg2 {[%clk 0:00:04]} 54. Kc1 {[%clk 0:00:11]}  e2 {[%clk 0:00:05]} 55. Kb2 {[%clk 0:00:12]}  e1=Q+ {[%clk 0:00:05]} 56. Ka3 {[%clk 0:00:13]}  Qa5# {[%clk 0:00:05]} 0-1


[Site "https://www.chess.com"]

[Event "Titled Tuesday Blitz August 22 Early 2023"]
[White "Esipenko, Andrey"]
[Black "Nihal Sarin"]
[WhiteFideId "24175439"]
[BlackFideId "25092340"]
[WhiteElo "2993"]
[BlackElo "3144"]
[Result "0-1"]
[Round "9"]
[TimeControl "180+1"]
[Date "2023.08.22"]
[WhiteClock "0:00:11"]
[BlackClock "0:00:15"]
[Board "1"]

1. e4 {[%clk 0:03:00]}  e6 {[%clk 0:02:59]} 2. d4 {[%clk 0:03:00]}  d5 {[%clk 0:02:57]} 3. e5 {[%clk 0:03:00]}  c5 {[%clk 0:02:57]} 4. c3 {[%clk 0:03:00]}  Qb6 {[%clk 0:02:49]} 5. Nf3 {[%clk 0:02:57]}  Nc6 {[%clk 0:02:50]} 6. a3 {[%clk 0:02:55]}  c4 {[%clk 0:02:42]} 7. Nbd2 {[%clk 0:02:55]}  Na5 {[%clk 0:02:41]} 8. h4 {[%clk 0:02:53]}  h6 {[%clk 0:02:40]} 9. Rb1 {[%clk 0:02:51]}  Bd7 {[%clk 0:02:32]} 10. b4 {[%clk 0:02:49]}  cxb3 {[%clk 0:02:32]} 11. Nxb3 {[%clk 0:02:50]}  Nxb3 {[%clk 0:02:22]} 12. Rxb3 {[%clk 0:02:34]}  Qc7 {[%clk 0:02:23]} 13. Rb1 {[%clk 0:02:29]}  Ne7 {[%clk 0:02:18]} 14. Bd2 {[%clk 0:02:27]}  Nc6 {[%clk 0:02:15]} 15. a4 {[%clk 0:02:25]}  Na5 {[%clk 0:02:12]} 16. Bd3 {[%clk 0:02:25]}  Nc4 {[%clk 0:02:13]} 17. Bf4 {[%clk 0:02:06]}  Be7 {[%clk 0:02:13]} 18. h5 {[%clk 0:02:03]}  Bc6 {[%clk 0:02:03]} 19. Nd2 {[%clk 0:01:54]}  Qa5 {[%clk 0:01:53]} 20. Qc2 {[%clk 0:01:29]}  Na3 {[%clk 0:01:48]} 21. Qb2 {[%clk 0:01:25]}  Nxb1 {[%clk 0:01:48]} 22. Nxb1 {[%clk 0:01:18]}  Qxa4 {[%clk 0:01:34]} 23. O-O {[%clk 0:01:18]}  a6 {[%clk 0:01:28]} 24. Re1 {[%clk 0:01:08]}  Rc8 {[%clk 0:01:25]} 25. Bc2 {[%clk 0:00:56]}  Qa5 {[%clk 0:01:24]} 26. Qc1 {[%clk 0:00:49]}  Ba4 {[%clk 0:01:19]} 27. Bd3 {[%clk 0:00:49]}  Bb5 {[%clk 0:01:20]} 28. Bc2 {[%clk 0:00:49]}  Qa2 {[%clk 0:01:11]} 29. Re3 {[%clk 0:00:49]}  Kd7 {[%clk 0:00:44]} 30. Rg3 {[%clk 0:00:48]}  Bf8 {[%clk 0:00:44]} 31. Qd1 {[%clk 0:00:41]}  Ke8 {[%clk 0:00:42]} 32. Nd2 {[%clk 0:00:40]}  Qb2 {[%clk 0:00:43]} 33. Nb1 {[%clk 0:00:23]}  Bd7 {[%clk 0:00:43]} 34. Bc1 {[%clk 0:00:17]}  Qa1 {[%clk 0:00:26]} 35. Qg4 {[%clk 0:00:16]}  Qa2 {[%clk 0:00:20]} 36. Qd1 {[%clk 0:00:14]}  a5 {[%clk 0:00:17]} 37. Bb3 {[%clk 0:00:11]}  Qxb1 {[%clk 0:00:15]} 0-1


[Site "https://www.chess.com"]

[Event "Titled Tuesday Blitz August 22 Early 2023"]
[White "Sarana, Alexey"]
[Black "Nakamura, Hikaru"]
[WhiteFideId "24133795"]
[BlackFideId "2016192"]
[WhiteElo "3041"]
[BlackElo "3223"]
[Result "0-1"]
[Round "9"]
[TimeControl "180+1"]
[Date "2023.08.22"]
[WhiteClock "0:00:00"]
[BlackClock "0:00:27"]
[Board "2"]

1. d4 {[%clk 0:03:00]}  Nf6 {[%clk 0:03:00]} 2. c4 {[%clk 0:03:00]}  e6 {[%clk 0:03:01]} 3. Nc3 {[%clk 0:03:01]}  d5 {[%clk 0:02:58]} 4. cxd5 {[%clk 0:03:01]}  exd5 {[%clk 0:02:58]} 5. Bf4 {[%clk 0:03:01]}  c5 {[%clk 0:02:52]} 6. e3 {[%clk 0:03:00]}  c4 {[%clk 0:02:47]} 7. Nf3 {[%clk 0:02:58]}  Bb4 {[%clk 0:02:44]} 8. Be2 {[%clk 0:02:49]}  Ne4 {[%clk 0:02:35]} 9. Rc1 {[%clk 0:02:38]}  Qa5 {[%clk 0:02:25]} 10. O-O {[%clk 0:01:38]}  Bxc3 {[%clk 0:02:22]} 11. bxc3 {[%clk 0:01:26]}  O-O {[%clk 0:02:21]} 12. Qc2 {[%clk 0:01:25]}  Nd7 {[%clk 0:02:20]} 13. Ne5 {[%clk 0:01:22]}  Nb6 {[%clk 0:02:06]} 14. f3 {[%clk 0:01:21]}  Nf6 {[%clk 0:02:06]} 15. Bg5 {[%clk 0:01:19]}  Nfd7 {[%clk 0:01:57]} 16. Be7 {[%clk 0:01:10]}  Re8 {[%clk 0:01:58]} 17. Bd6 {[%clk 0:01:11]}  Re6 {[%clk 0:01:37]} 18. Bb4 {[%clk 0:01:10]}  Qa4 {[%clk 0:01:37]} 19. Qxa4 {[%clk 0:00:36]}  Nxa4 {[%clk 0:01:38]} 20. Nxd7 {[%clk 0:00:37]}  Bxd7 {[%clk 0:01:34]} 21. e4 {[%clk 0:00:37]}  a5 {[%clk 0:01:13]} 22. Ba3 {[%clk 0:00:36]}  Rc8 {[%clk 0:01:13]} 23. e5 {[%clk 0:00:14]}  b5 {[%clk 0:01:04]} 24. f4 {[%clk 0:00:13]}  Rb6 {[%clk 0:01:04]} 25. Bd6 {[%clk 0:00:07]}  b4 {[%clk 0:00:59]} 26. cxb4 {[%clk 0:00:08]}  axb4 {[%clk 0:01:00]} 27. f5 {[%clk 0:00:07]}  Nc3 {[%clk 0:00:59]} 28. Rc2 {[%clk 0:00:07]}  Ne4 {[%clk 0:00:52]} 29. Be7 {[%clk 0:00:05]}  c3 {[%clk 0:00:38]} 30. f6 {[%clk 0:00:05]}  Ba4 {[%clk 0:00:33]} 31. Rcc1 {[%clk 0:00:05]}  c2 {[%clk 0:00:33]} 32. Bd3 {[%clk 0:00:04]}  Nc3 {[%clk 0:00:30]} 33. Ra1 {[%clk 0:00:02]}  Bb5 {[%clk 0:00:30]} 34. Bxc2 {[%clk 0:00:01]}  Ne2+ {[%clk 0:00:30]} 35. Kh1 {[%clk 0:00:01]}  Rxc2 {[%clk 0:00:30]} 36. Rfb1 {[%clk 0:00:00]}  Rbc6 {[%clk 0:00:27]} 0-1


[Site "https://www.chess.com"]

[Event "Titled Tuesday Blitz August 22 Early 2023"]
[White "Henriquez Villagra, Cristobal"]
[Black "Erigaisi Arjun"]
[WhiteFideId "3409350"]
[BlackFideId "35009192"]
[WhiteElo "2938"]
[BlackElo "3068"]
[Result "0-1"]
[Round "9"]
[TimeControl "180+1"]
[Date "2023.08.22"]
[WhiteClock "0:00:04"]
[BlackClock "0:00:05"]
[Board "4"]

1. e4 {[%clk 0:03:00]}  c6 {[%clk 0:02:59]} 2. d4 {[%clk 0:02:58]}  d5 {[%clk 0:02:59]} 3. e5 {[%clk 0:02:59]}  Bf5 {[%clk 0:02:59]} 4. h4 {[%clk 0:02:59]}  h6 {[%clk 0:02:56]} 5. g4 {[%clk 0:02:58]}  Bd7 {[%clk 0:02:56]} 6. Nc3 {[%clk 0:02:51]}  e6 {[%clk 0:02:56]} 7. Nce2 {[%clk 0:02:50]}  c5 {[%clk 0:02:55]} 8. c3 {[%clk 0:02:50]}  h5 {[%clk 0:02:55]} 9. gxh5 {[%clk 0:02:46]}  Nc6 {[%clk 0:02:55]} 10. Nf3 {[%clk 0:02:42]}  Rxh5 {[%clk 0:02:52]} 11. Ng3 {[%clk 0:02:39]}  Rh8 {[%clk 0:02:51]} 12. Bd3 {[%clk 0:02:39]}  Nh6 {[%clk 0:02:46]} 13. a3 {[%clk 0:02:35]}  Qb6 {[%clk 0:02:44]} 14. Bc2 {[%clk 0:02:05]}  Rc8 {[%clk 0:02:41]} 15. Rb1 {[%clk 0:02:01]}  a5 {[%clk 0:02:29]} 16. Kf1 {[%clk 0:01:56]}  a4 {[%clk 0:02:16]} 17. Kg2 {[%clk 0:01:55]}  Qa6 {[%clk 0:02:04]} 18. h5 {[%clk 0:01:40]}  b5 {[%clk 0:01:56]} 19. dxc5 {[%clk 0:01:25]}  Bxc5 {[%clk 0:01:55]} 20. Rh4 {[%clk 0:01:25]}  Na5 {[%clk 0:01:53]} 21. Qd2 {[%clk 0:01:20]}  Kf8 {[%clk 0:01:43]} 22. Nd4 {[%clk 0:01:13]}  Nc4 {[%clk 0:01:39]} 23. Qe2 {[%clk 0:01:10]}  Be7 {[%clk 0:01:35]} 24. Rh3 {[%clk 0:01:02]}  f5 {[%clk 0:01:32]} 25. Bf4 {[%clk 0:00:56]}  Re8 {[%clk 0:01:25]} 26. Bd3 {[%clk 0:00:56]}  Nf7 {[%clk 0:01:19]} 27. Kh2 {[%clk 0:00:27]}  Bc5 {[%clk 0:01:12]} 28. Rg1 {[%clk 0:00:27]}  Rh7 {[%clk 0:01:10]} 29. Nf1 {[%clk 0:00:24]}  Bxd4 {[%clk 0:01:06]} 30. cxd4 {[%clk 0:00:25]}  Qb6 {[%clk 0:01:06]} 31. Be3 {[%clk 0:00:19]}  b4 {[%clk 0:01:03]} 32. Bxc4 {[%clk 0:00:17]}  dxc4 {[%clk 0:01:04]} 33. Qxc4 {[%clk 0:00:18]}  bxa3 {[%clk 0:01:01]} 34. bxa3 {[%clk 0:00:18]}  Rc8 {[%clk 0:01:00]} 35. Qe2 {[%clk 0:00:14]}  Qb3 {[%clk 0:00:49]} 36. h6 {[%clk 0:00:12]}  g5 {[%clk 0:00:35]} 37. Bxg5 {[%clk 0:00:11]}  Rc3 {[%clk 0:00:36]} 38. Be3 {[%clk 0:00:11]}  f4 {[%clk 0:00:35]} 39. Qg4 {[%clk 0:00:11]}  fxe3 {[%clk 0:00:34]} 40. Qg8+ {[%clk 0:00:11]}  Ke7 {[%clk 0:00:34]} 41. Nxe3 {[%clk 0:00:06]}  Qb2 {[%clk 0:00:28]} 42. Rg2 {[%clk 0:00:05]}  Qb1 {[%clk 0:00:20]} 43. Rgg3 {[%clk 0:00:01]}  Rc1 {[%clk 0:00:18]} 44. Rg7 {[%clk 0:00:01]}  Rh1+ {[%clk 0:00:18]} 45. Kg3 {[%clk 0:00:02]}  Qg1+ {[%clk 0:00:10]} 46. Ng2 {[%clk 0:00:02]}  Rxh3+ {[%clk 0:00:06]} 47. Kxh3 {[%clk 0:00:03]}  Rxh6+ {[%clk 0:00:07]} 48. Kg3 {[%clk 0:00:03]}  Qh2+ {[%clk 0:00:06]} 49. Kf3 {[%clk 0:00:04]}  Qh5+ {[%clk 0:00:05]} 50. Ke3 {[%clk 0:00:04]}  Bc6 {[%clk 0:00:04]} 51. Nh4 {[%clk 0:00:02]}  Be8 {[%clk 0:00:01]} 52. Nf3 {[%clk 0:00:02]}  Kd8 {[%clk 0:00:02]} 53. Ng5 {[%clk 0:00:03]}  Nxg5 {[%clk 0:00:02]} 54. Qf8 {[%clk 0:00:03]}  Qf3+ {[%clk 0:00:02]} 55. Qxf3 {[%clk 0:00:03]}  Nxf3 {[%clk 0:00:03]} 56. Kxf3 {[%clk 0:00:04]}  Rh3+ {[%clk 0:00:03]} 57. Rg3 {[%clk 0:00:04]}  Bc6+ {[%clk 0:00:02]} 58. Kf4 {[%clk 0:00:04]}  Rxg3 {[%clk 0:00:03]} 59. fxg3 {[%clk 0:00:05]}  Ke7 {[%clk 0:00:04]} 60. Kg5 {[%clk 0:00:05]}  Kf7 {[%clk 0:00:04]} 61. Kh6 {[%clk 0:00:06]}  Be4 {[%clk 0:00:04]} 62. g4 {[%clk 0:00:06]}  Bg6 {[%clk 0:00:04]} 63. Kg5 {[%clk 0:00:07]}  Kg7 {[%clk 0:00:03]} 64. Kf4 {[%clk 0:00:07]}  Bc2 {[%clk 0:00:03]} 65. Kg5 {[%clk 0:00:08]}  Bd3 {[%clk 0:00:03]} 66. Kh5 {[%clk 0:00:08]}  Be2 {[%clk 0:00:03]} 67. Kg5 {[%clk 0:00:09]}  Bf3 {[%clk 0:00:03]} 68. Kh5 {[%clk 0:00:10]}  Kf7 {[%clk 0:00:04]} 69. Kg5 {[%clk 0:00:10]}  Ke7 {[%clk 0:00:05]} 70. Kf4 {[%clk 0:00:08]}  Bd1 {[%clk 0:00:05]} 71. Kg5 {[%clk 0:00:09]}  Kd7 {[%clk 0:00:05]} 72. Kh4 {[%clk 0:00:09]}  Kc6 {[%clk 0:00:06]} 73. g5 {[%clk 0:00:09]}  Bc2 {[%clk 0:00:05]} 74. Kh5 {[%clk 0:00:04]}  Kd5 {[%clk 0:00:05]} 0-1


[Site "https://www.chess.com"]

[Event "Titled Tuesday Blitz August 22 Early 2023"]
[White "Demchenko, Anton"]
[Black "Bortnyk, Olexandr"]
[WhiteFideId "4160258"]
[BlackFideId "14120828"]
[WhiteElo "2948"]
[BlackElo "3058"]
[Result "1-0"]
[Round "9"]
[TimeControl "180+1"]
[Date "2023.08.22"]
[WhiteClock "0:00:16"]
[BlackClock "0:00:02"]
[Board "5"]

1. e4 {[%clk 0:02:52]}  Nf6 {[%clk 0:02:59]} 2. e5 {[%clk 0:02:52]}  Nd5 {[%clk 0:03:00]} 3. d4 {[%clk 0:02:51]}  d6 {[%clk 0:03:00]} 4. Nf3 {[%clk 0:02:52]}  dxe5 {[%clk 0:03:01]} 5. Nxe5 {[%clk 0:02:53]}  c6 {[%clk 0:03:01]} 6. h3 {[%clk 0:02:49]}  Nd7 {[%clk 0:02:59]} 7. Nf3 {[%clk 0:02:48]}  g6 {[%clk 0:02:55]} 8. Bd3 {[%clk 0:02:46]}  Bg7 {[%clk 0:02:54]} 9. O-O {[%clk 0:02:46]}  O-O {[%clk 0:02:55]} 10. Re1 {[%clk 0:02:46]}  Re8 {[%clk 0:02:46]} 11. Nbd2 {[%clk 0:02:39]}  Qc7 {[%clk 0:02:38]} 12. Nc4 {[%clk 0:02:36]}  b5 {[%clk 0:02:36]} 13. Nce5 {[%clk 0:02:31]}  Nxe5 {[%clk 0:02:36]} 14. dxe5 {[%clk 0:02:31]}  a6 {[%clk 0:02:28]} 15. c3 {[%clk 0:02:29]}  Be6 {[%clk 0:02:25]} 16. Qe2 {[%clk 0:02:28]}  Rad8 {[%clk 0:02:21]} 17. a4 {[%clk 0:02:25]}  Nb6 {[%clk 0:02:14]} 18. axb5 {[%clk 0:02:14]}  axb5 {[%clk 0:02:15]} 19. Nd4 {[%clk 0:02:11]}  Bc4 {[%clk 0:02:12]} 20. Bxc4 {[%clk 0:01:34]}  Nxc4 {[%clk 0:02:13]} 21. Bf4 {[%clk 0:01:35]}  Rd5 {[%clk 0:02:07]} 22. Nf3 {[%clk 0:01:28]}  h6 {[%clk 0:01:52]} 23. b3 {[%clk 0:01:26]}  Nb6 {[%clk 0:01:50]} 24. c4 {[%clk 0:01:22]}  bxc4 {[%clk 0:01:47]} 25. bxc4 {[%clk 0:01:22]}  Rdd8 {[%clk 0:01:46]} 26. h4 {[%clk 0:01:12]}  e6 {[%clk 0:01:44]} 27. Reb1 {[%clk 0:01:10]}  Nd7 {[%clk 0:01:43]} 28. Qe3 {[%clk 0:01:05]}  h5 {[%clk 0:01:31]} 29. Ra7 {[%clk 0:01:02]}  Qc8 {[%clk 0:01:31]} 30. Rbb7 {[%clk 0:01:01]}  Bf8 {[%clk 0:01:29]} 31. Rc7 {[%clk 0:00:57]}  Bc5 {[%clk 0:01:14]} 32. Rxc8 {[%clk 0:00:56]}  Rxc8 {[%clk 0:01:14]} 33. Rxd7 {[%clk 0:00:55]}  Bxe3 {[%clk 0:01:14]} 34. fxe3 {[%clk 0:00:52]}  Red8 {[%clk 0:01:12]} 35. Rd6 {[%clk 0:00:46]}  Ra8 {[%clk 0:01:07]} 36. c5 {[%clk 0:00:43]}  Rdc8 {[%clk 0:01:06]} 37. Ng5 {[%clk 0:00:39]}  Rc7 {[%clk 0:01:05]} 38. Kf2 {[%clk 0:00:38]}  Kg7 {[%clk 0:01:02]} 39. Kf3 {[%clk 0:00:38]}  Kg8 {[%clk 0:00:45]} 40. Ne4 {[%clk 0:00:37]}  Kg7 {[%clk 0:00:41]} 41. Bg5 {[%clk 0:00:34]}  Rb8 {[%clk 0:00:41]} 42. Bd8 {[%clk 0:00:33]}  Rcc8 {[%clk 0:00:39]} 43. Bf6+ {[%clk 0:00:33]}  Kg8 {[%clk 0:00:31]} 44. Rd7 {[%clk 0:00:34]}  Ra8 {[%clk 0:00:27]} 45. Nd6 {[%clk 0:00:33]}  Rf8 {[%clk 0:00:28]} 46. Rc7 {[%clk 0:00:34]}  Ra6 {[%clk 0:00:27]} 47. g3 {[%clk 0:00:27]}  Ra1 {[%clk 0:00:19]} 48. Rxc6 {[%clk 0:00:27]}  Rf1+ {[%clk 0:00:18]} 49. Kg2 {[%clk 0:00:27]}  Re1 {[%clk 0:00:12]} 50. Kf2 {[%clk 0:00:27]}  Rb1 {[%clk 0:00:10]} 51. Rc7 {[%clk 0:00:27]}  Ra8 {[%clk 0:00:06]} 52. c6 {[%clk 0:00:23]}  Ra2+ {[%clk 0:00:03]} 53. Kf3 {[%clk 0:00:24]}  Rf1+ {[%clk 0:00:03]} 54. Ke4 {[%clk 0:00:24]}  Ra4+ {[%clk 0:00:03]} 55. Kd3 {[%clk 0:00:25]}  Ra8 {[%clk 0:00:02]} 56. Nxf7 {[%clk 0:00:19]}  Rd1+ {[%clk 0:00:01]} 57. Ke2 {[%clk 0:00:19]}  Rc1 {[%clk 0:00:01]} 58. Nd6 {[%clk 0:00:16]}  Ra2+ {[%clk 0:00:01]} 59. Kd3 {[%clk 0:00:16]}  Ra3+ {[%clk 0:00:01]} 60. Kd2 {[%clk 0:00:16]}  Rac3 {[%clk 0:00:01]} 61. Rc8+ {[%clk 0:00:17]}  Kh7 {[%clk 0:00:02]} 62. Rh8# {[%clk 0:00:16]} 1-0


[Site "https://www.chess.com"]